bitfinex-derivatives/quotes_ETHF0:USTF0_20240928
["timestamp","ask_amount","ask_price","bid_price","bid_amount"]
[1727530161753,1.14783,2660.1,2659.9,0.3812]
[1727530162058,0.37584,2660.0,2659.9,0.3812]
[1727530162251,10.0092,2660.0,2659.4,4.70071026]
[1727530162447,10.0092,2660.0,2659.5,1.189]
[1727530162448,0.37588,2659.7,2659.5,1.189]
[1727530162650,0.3723,2659.6,2659.5,1.189]
[1727530162846,0.772,2659.6,2659.1,7.12381026]
[1727530163160,0.74671,2659.5,2659.2,1.56494]
[1727530163645,0.37593,2659.4,2659.2,1.189]
[1727530163850,0.74672,2659.5,2659.2,0.75695]
[1727530164050,0.74672,2659.5,2659.2,1.189]
[1727530164051,0.37593,2659.4,2659.2,1.189]
[1727530164251,0.37593,2659.4,2659.2,0.381]
[1727530164852,3.58373,2659.4,2659.1,3.738]
[1727530165059,3.58373,2659.4,2659.1,0.808]
[1727530165060,3.58374,2659.4,2659.1,0.808]
[1727530165258,0.37594,2659.3,2659.1,0.808]
[1727530165458,0.7721,2659.2,2659.0,1.96157]
[1727530166258,0.7721,2659.2,2659.0,0.7776]
[1727530166457,0.7721,2659.2,2659.0,1.19]
[1727530166656,0.391,2659.1,2659.0,1.19]
[1727530166853,0.391,2659.1,2659.0,30.981]
[1727530167056,0.391,2659.1,2659.0,0.381]
[1727530167859,0.391,2659.1,2659.0,0.75698]
[1727530168163,0.7721,2659.2,2659.0,0.75698]
[1727530169155,0.7721,2659.2,2659.1,0.37597]
[1727530169362,0.7721,2659.2,2659.1,3.30597]
[1727530169670,0.7721,2659.2,2659.1,2.93]
[1727530170958,0.3757,2659.2,2659.1,3.30597]
[1727530171156,0.3757,2659.2,2659.1,3.68107]
[1727530171756,5.07257214,2659.4,2659.1,3.3051]
[1727530172053,0.7816,2659.6,2659.3,3.30593]
[1727530172253,0.7816,2659.6,2659.2,0.3705]
[1727530172254,0.3995,2659.6,2659.5,2.93]
[1727530172454,0.3995,2659.6,2659.5,3.30591]
[1727530172655,10.2264,2659.8,2659.5,3.30591]
[1727530172851,3.9764,2659.8,2659.5,3.3051]
[1727530173068,3.9764,2659.8,2659.7,2.93]
[1727530173956,4.35227,2659.8,2659.6,30.6]
[1727530175259,0.3995,2659.9,2659.8,0.37587]
[1727530175662,0.3995,2659.9,2659.8,0.4055]
[1727530177666,0.37584,2660.0,2659.8,0.4055]
[1727530177872,9.8679,2660.1,2659.8,0.4055]
[1727530178061,0.37585,2659.9,2659.8,0.4055]
[1727530179261,11.34617214,2660.1,2659.8,0.4055]
[1727530179262,0.37585,2660.0,2659.8,0.4055]
[1727530179465,0.37584,2660.0,2659.8,0.4055]
[1727530179776,0.37585,2660.0,2659.8,0.4055]
[1727530180171,3.6179,2660.1,2659.8,0.4055]
[1727530180471,3.99373,2660.1,2659.8,0.78136]
[1727530180865,3.6179,2660.1,2659.8,0.78136]
[1727530181072,3.99374,2660.1,2659.8,0.78136]
[1727530182562,3.6179,2660.1,2659.8,0.4055]
[1727530182768,3.99373,2660.1,2659.8,0.78136]
[1727530186970,0.37584,2660.0,2659.8,0.78136]
[1727530189779,4.68607214,2660.1,2660.0,0.37584]
[1727530189973,4.68607214,2660.1,2659.9,0.4031]
[1727530189974,0.77335,2660.0,2659.9,0.4031]
[1727530193378,0.77335,2660.0,2659.8,1.2245]
[1727530193379,0.77335,2660.0,2659.8,1.60037]
[1727530197373,0.3975,2660.0,2659.8,1.2245]
[1727530197575,0.77334,2660.0,2659.8,1.60036]
[1727530198677,0.3975,2660.0,2659.9,0.37585]
[1727530198977,0.77335,2660.0,2659.8,1.60036]
[1727530199176,0.3975,2660.0,2659.9,0.37585]
[1727530200481,0.3975,2660.0,2659.8,1.2245]
[1727530200676,0.3975,2660.0,2659.9,0.37585]
[1727530201272,0.3975,2660.0,2659.8,1.60036]
[1727530201273,0.77334,2660.0,2659.8,1.60036]
[1727530202178,0.77334,2660.0,2659.9,1.35]
[1727530202481,0.3975,2660.0,2659.9,1.72585]
[1727530202876,3.2078,2660.1,2660.0,0.37584]
[1727530203072,3.2078,2660.1,2660.0,1.72584]
[1727530204685,0.37582,2660.2,2660.0,1.72584]
[1727530204885,0.37582,2660.2,2660.1,0.3922]
[1727530205387,3.58361,2660.3,2660.1,0.76803]
[1727530206188,0.37581,2660.2,2660.1,0.3922]
[1727530206581,3.2078,2660.3,2660.1,0.76801]
[1727530206582,3.5836,2660.3,2660.1,0.76801]
[1727530206778,3.2078,2660.3,2660.1,0.76801]
[1727530207085,3.2078,2660.3,2660.2,0.37581]
[1727530208181,3.2078,2660.3,2660.2,1.72581]
[1727530212285,3.5836,2660.3,2660.2,1.35]
[1727530212481,0.37581,2660.2,2660.1,0.3922]
[1727530212816,0.37581,2660.2,2660.0,1.35]
[1727530212817,0.37582,2660.2,2660.0,1.19484]
[1727530213085,5.45198214,2660.3,2660.1,0.37583]
[1727530213486,4.68607214,2660.3,2660.1,0.3846]
[1727530213678,5.06187214,2660.3,2660.1,0.76042]
[1727530213882,4.68607214,2660.3,2660.2,0.37581]
[1727530214184,3.2078,2660.3,2660.2,0.37581]
[1727530214486,4.68607214,2660.3,2660.2,0.37581]
[1727530214879,4.68607214,2660.3,2660.1,1.1395]
[1727530215081,0.37581,2660.2,2660.1,1.1395]
[1727530215282,0.37581,2660.2,2660.1,1.9485]
[1727530216491,1.47827214,2660.2,2660.1,2.32433]
[1727530217188,1.85408214,2660.2,2660.1,1.9485]
[1727530217388,1.85408214,2660.2,2660.1,2.32433]
[1727530217389,1.47630545,2660.2,2660.1,2.32433]
[1727530218687,1.47630545,2660.2,2660.1,3.31034026]
[1727530219185,1.47630545,2660.3,2660.2,0.37581]
[1727530219388,1.47630545,2660.4,2660.3,0.3758]
[1727530219588,1.47630545,2660.4,2660.3,1.36133801]
[1727530221987,1.47630545,2660.4,2660.3,0.3758]
[1727530223681,1.47630545,2660.4,2660.3,1.36133801]
[1727530224394,1.85208545,2660.4,2660.2,2.71133801]
[1727530224595,1.3153,2660.3,2660.2,0.98553801]
[1727530224794,1.3153,2660.3,2660.1,1.37013801]
[1727530224795,0.37581,2660.2,2660.1,1.37013801]
[1727530224985,0.37583,2660.1,2660.0,1.79453801]
[1727530225187,0.37583,2660.1,2660.0,2.04895476]
[1727530225491,0.37583,2660.1,2660.0,0.98543494]
[1727530225687,1.47630545,2660.2,2660.0,2.71127494]
[1727530225995,1.85212545,2660.2,2660.0,2.71127494]
[1727530226191,1.47630545,2660.2,2660.1,2.11163]
[1727530226390,1.47630545,2660.2,2660.1,2.92773]
[1727530226688,1.47630545,2660.4,2660.3,0.3758]
[1727530226892,1.47630545,2660.4,2660.3,1.7258]
[1727530227888,1.85208545,2660.5,2660.3,2.71116957]
[1727530228290,1.85208545,2660.5,2660.4,0.3753]
[1727530228491,1.47630545,2660.5,2660.4,0.3753]
[1727530228691,1.85207545,2660.5,2660.4,0.3753]
[1727530229198,5.17559161,2660.6,2660.4,0.75107]
[1727530229396,0.37577,2660.5,2660.4,0.3753]
[1727530229595,5.55136161,2660.6,2660.4,0.75108]
[1727530229787,5.17559161,2660.6,2660.4,0.75108]
[1727530229991,0.37577,2660.5,2660.4,0.3753]
[1727530230292,5.17559161,2660.6,2660.4,0.3753]
[1727530230497,1.85110067,2660.5,2660.4,0.3753]
[1727530231090,1.85110067,2660.5,2660.4,0.75108]
[1727530231298,1.85110067,2660.5,2660.4,0.3753]
[1727530231704,1.47533067,2660.5,2660.4,0.75108]
[1727530231905,1.85110067,2660.5,2660.4,0.3753]
[1727530232306,1.47533067,2660.5,2660.4,0.75108]
[1727530232604,1.85110067,2660.5,2660.4,0.75108]
[1727530232808,1.85110067,2660.5,2660.4,0.3753]
[1727530235000,1.85110067,2660.5,2660.4,0.75108]
[1727530235199,1.85110067,2660.5,2660.4,0.3753]
[1727530237296,1.47533067,2660.5,2660.4,0.75108]
[1727530237909,1.85110067,2660.5,2660.4,0.3753]
[1727530240113,1.85110067,2660.5,2660.1,1.79436957]
[1727530240114,0.37581,2660.2,2660.1,1.79436957]
[1727530240316,0.37583,2660.1,2660.0,1.79436957]
[1727530240508,1.13353,2660.1,2660.0,2.159]
[1727530241412,2.60864534,2660.1,2660.0,2.159]
[1727530242103,2.23281534,2660.1,2660.0,2.53484]
[1727530243211,1.86111534,2660.1,2660.0,2.53484]
[1727530244711,5.44474534,2660.1,2660.0,2.53484]
[1727530244917,5.06891534,2660.1,2660.0,2.53484]
[1727530245107,5.06891534,2660.1,2660.0,2.53384]
[1727530247208,5.06891534,2660.1,2660.0,3.51920957]
[1727530249419,0.386,2660.1,2660.0,4.75939566]
[1727530249816,1.85251534,2660.2,2660.1,0.37583]
[1727530250012,1.85251534,2660.2,2660.1,2.71139789]
[1727530250213,0.3774,2660.2,2660.1,2.71139789]
[1727530250412,1.85251534,2660.2,2660.1,2.71139789]
[1727530251424,2.22832534,2660.2,2660.1,1.35]
[1727530251618,2.22832534,2660.2,2660.1,1.72583]
[1727530251619,1.85251534,2660.2,2660.1,1.72583]
[1727530251809,1.85251534,2660.2,2660.1,2.71139789]
[1727530252620,1.85251534,2660.2,2660.1,1.72583]
[1727530253511,1.85251534,2660.2,2660.1,2.71139789]
[1727530254516,0.3774,2660.2,2660.1,3.95162113]
[1727530255713,1.85251534,2660.2,2660.1,3.50179789]
[1727530256118,1.85251534,2660.2,2660.1,4.7420314]
[1727530256420,0.3774,2660.2,2660.1,4.7420314]
[1727530256611,0.3774,2660.2,2660.1,4.74202381]
[1727530257314,1.47597802,2660.2,2660.1,3.50179789]
[1727530257522,1.47597802,2660.3,2660.2,0.37581]
[1727530257823,1.47597802,2660.3,2660.2,0.78321]
[1727530259425,1.47597802,2660.3,2660.2,1.76877789]
[1727530260829,1.87137802,2660.4,2660.3,0.3758]
[1727530261143,1.87137802,2660.4,2660.3,2.71138222]
[1727530261309,1.47597802,2660.4,2660.3,2.71138222]
[1727530261513,1.47597802,2660.4,2660.3,3.95155466]
[1727530261710,0.3954,2660.5,2660.4,0.37578]
[1727530261711,1.8714207,2660.5,2660.4,0.37578]
[1727530261925,0.3954,2660.5,2660.4,0.37578]
[1727530262125,2.36319161,2660.5,2660.4,0.37578]
[1727530262319,2.73896161,2660.5,2660.4,0.37578]
[1727530262519,2.73896161,2660.5,2660.3,2.71137222]
[1727530262819,1.47601576,2660.4,2660.3,2.71137222]
[1727530265125,1.47601576,2660.5,2660.4,0.37578]
[1727530265320,1.47601576,2660.5,2660.4,1.36131334]
[1727530265526,1.47601576,2660.5,2660.4,5.11971334]
[1727530265730,1.47601576,2660.6,2660.5,0.37577]
[1727530266019,1.47601576,2660.6,2660.5,3.92570334]
[1727530266222,1.47601576,2660.6,2660.5,13.68410334]
[1727530266420,1.47601576,2660.8,2660.7,0.37574]
[1727530266616,1.47601576,2660.8,2660.7,2.71110276]
[1727530266821,1.47601576,2660.8,2660.7,33.31110276]
[1727530267030,1.47601576,2660.8,2660.7,32.32574]
[1727530267426,1.85174576,2660.8,2660.7,31.408]
[1727530267631,2.34352161,2660.8,2660.7,31.408]
[1727530267832,2.34352161,2660.8,2660.7,0.808]
[1727530268032,2.34352161,2660.8,2660.6,1.35]
[1727530268033,0.37574,2660.7,2660.6,2.158]
[1727530268226,2.22252742,2660.7,2660.6,2.158]
[1727530268421,0.74724,2660.7,2660.6,2.158]
[1727530269925,2.22245959,2660.7,2660.6,2.158]
[1727530270123,2.22243035,2660.7,2660.6,2.158]
[1727530270425,0.93943,2660.5,2660.4,0.98536276]
[1727530270726,0.93943,2660.5,2660.2,0.808]
[1727530270727,0.3758,2660.3,2660.2,0.808]
[1727530271129,0.37581,2660.2,2660.1,1.35]
[1727530271327,1.47481646,2660.3,2660.1,1.72582]
[1727530271520,1.47481646,2660.3,2660.1,1.35]
[1727530271521,0.37581,2660.2,2660.1,1.35]
[1727530271725,1.16871,2660.2,2660.1,1.35]
[1727530271925,1.16871,2660.2,2660.1,2.33536276]
[1727530272317,1.16871,2660.2,2660.1,1.35]
[1727530272736,0.7929,2660.2,2660.1,2.71119276]
[1727530272933,1.85062646,2660.3,2660.1,2.71119276]
[1727530273147,1.85062646,2660.3,2660.1,1.72583]
[1727530273442,1.85062646,2660.3,2660.2,1.35]
[1727530273727,1.85062646,2660.3,2660.2,1.72581]
[1727530276228,1.85062646,2660.3,2660.2,1.35]
[1727530276533,0.37581,2660.2,2660.1,2.33536276]
[1727530276734,1.85062646,2660.2,2660.1,1.35]
[1727530277534,0.37581,2660.2,2660.1,1.35]
[1727530278026,1.85062646,2660.2,2660.1,1.35]
[1727530278226,1.47481646,2660.2,2660.1,1.72583]
[1727530278738,1.85062646,2660.2,2660.1,1.35]
[1727530279033,0.37581,2660.2,2660.1,1.35]
[1727530279635,0.37581,2660.2,2660.1,1.72583]
[1727530279833,0.37581,2660.2,2660.1,1.35]
[1727530280161,1.85062646,2660.2,2660.1,1.35]
[1727530281136,0.37581,2660.2,2660.1,1.35]
[1727530281829,0.37583,2660.1,2660.0,0.98536276]
[1727530282033,6.25,2659.9,2659.4,0.98536276]
[1727530282226,0.37593,2659.4,2659.2,3.22891566]
[1727530282426,0.3707,2659.3,2659.1,1.79336276]
[1727530282730,0.3707,2659.3,2659.1,1.18396]
[1727530282931,0.3707,2659.3,2659.0,2.71133276]
[1727530283135,1.35,2659.2,2659.0,0.98536276]
[1727530283327,1.35,2659.2,2658.8,4.19316276]
[1727530283527,1.7396,2659.2,2658.8,3.2078]
[1727530283738,0.37597,2659.1,2658.8,3.58381]
[1727530283928,3.5898686,2659.2,2658.9,0.376]
[1727530284238,3.5898686,2659.2,2658.9,0.37599]
[1727530284239,0.76556,2659.2,2658.9,0.37599]
[1727530285637,0.37597,2659.1,2658.8,34.1838]
[1727530286032,0.37597,2659.1,2658.8,34.585]
[1727530287043,0.37597,2659.1,2658.8,34.58501]
[1727530287338,0.37597,2659.1,2658.8,34.585]
[1727530287733,0.37598,2659.0,2658.8,34.585]
[1727530288131,0.37598,2659.0,2658.8,31.3772]
[1727530288335,0.37598,2659.0,2658.8,31.0012]
[1727530289044,0.376,2658.9,2658.8,31.0012]
[1727530289740,0.37599,2659.0,2658.8,31.0012]
[1727530289946,3.2078,2659.1,2658.8,31.0012]
[1727530290136,0.37599,2659.0,2658.8,31.37721]
[1727530290345,0.37598,2659.0,2658.8,31.37721]
[1727530290847,0.37598,2659.0,2658.8,31.0012]
[1727530291546,3.58378,2659.1,2658.8,31.0012]
[1727530291748,3.58378,2659.1,2658.9,0.7457]
[1727530291947,3.2078,2659.1,2658.9,0.7457]
[1727530292350,3.58377,2659.1,2658.9,0.7457]
[1727530294044,3.58377,2659.1,2658.9,0.74569]
[1727530296342,0.37597,2659.1,2658.9,0.74569]
[1727530296547,0.37598,2659.0,2658.9,0.74569]
[1727530296849,3.58377,2659.1,2659.0,0.37598]
[1727530297642,3.58377,2659.1,2658.9,0.74569]
[1727530300453,0.37598,2659.0,2658.9,0.74569]
[1727530301061,3.58378,2659.1,2659.0,0.37598]
[1727530301256,3.58378,2659.1,2658.9,0.74569]
[1727530301257,0.37598,2659.0,2658.9,0.74569]
[1727530305054,0.37598,2659.0,2658.9,0.3697]
[1727530306765,0.37598,2659.0,2658.9,0.7457]
[1727530306970,0.37598,2659.0,2658.9,0.3697]
[1727530307464,0.37605,2658.5,2658.4,0.37606]
[1727530307763,0.37607,2658.4,2658.3,0.78388]
[1727530307955,0.37607,2658.4,2658.3,31.79008]
[1727530308554,0.37607,2658.4,2658.3,31.414]
[1727530308758,0.77835,2658.6,2658.4,0.37606]
[1727530308964,0.37605,2658.5,2658.4,0.37606]
[1727530309763,0.37605,2658.5,2658.3,33.14007]
[1727530309963,0.37605,2658.5,2658.4,0.37607]
[1727530310163,0.37605,2658.5,2658.3,33.14007]
[1727530311059,0.37605,2658.5,2658.4,0.3929]
[1727530311565,0.37605,2658.5,2658.4,0.76897]
[1727530311863,0.37605,2658.5,2658.4,0.3929]
[1727530312954,0.37605,2658.5,2658.4,0.76897]
[1727530313569,0.37605,2658.5,2658.4,0.3929]
[1727530313970,0.37605,2658.5,2658.4,0.76897]
[1727530317973,0.4023,2658.6,2658.5,0.37605]
[1727530317974,0.77835,2658.6,2658.5,0.37605]
[1727530319464,0.77835,2658.6,2658.4,0.76896]
[1727530319659,0.37605,2658.5,2658.4,0.76896]
[1727530321269,7.0292,2658.9,2658.7,0.37601]
[1727530321270,0.7792,2658.9,2658.7,0.37601]
[1727530321473,0.75571,2658.9,2658.8,0.4055]
[1727530321959,0.75571,2658.9,2658.8,0.78151]
[1727530322162,0.3863,2659.0,2658.9,0.376]
[1727530322363,3.2078,2659.1,2659.0,0.37598]
[1727530325771,3.2078,2659.1,2659.0,1.72598]
[1727530326069,0.3863,2659.3,2659.2,0.37595]
[1727530327166,0.3863,2659.3,2659.2,0.75485]
[1727530327671,0.76224,2659.3,2659.2,0.75485]
[1727530328170,0.76224,2659.3,2659.2,0.3789]
[1727530329076,2.2365486,2659.3,2659.2,0.3789]
[1727530329476,0.76224,2659.3,2659.2,0.3789]
[1727530329685,0.3863,2659.3,2659.2,0.75485]
[1727530330768,0.76224,2659.3,2659.2,0.3789]
[1727530333670,7.01224,2659.3,2659.2,0.3789]
[1727530334577,7.01224,2659.3,2659.2,0.75485]
[1727530334882,7.01224,2659.3,2659.2,0.3789]
[1727530336277,7.01224,2659.3,2659.2,0.75485]
[1727530336476,7.01224,2659.3,2659.2,0.3789]
[1727530338771,3.2078,2659.4,2659.3,0.37594]
[1727530338976,4.6821086,2659.7,2659.6,0.3759]
[1727530339287,0.37586,2659.9,2659.7,0.37588]
[1727530339473,0.37586,2659.9,2659.6,1.35]
[1727530339474,0.37586,2659.9,2659.8,0.3878]
[1727530340783,3.2078,2660.1,2659.8,5.9061]
[1727530340987,3.2078,2660.1,2660.0,0.37584]
[1727530341374,3.58363,2660.1,2660.0,0.37584]
[1727530341580,0.37582,2660.2,2660.0,0.37584]
[1727530341888,0.37583,2660.1,2660.0,0.37584]
[1727530342189,0.37585,2659.9,2659.8,1.1948]
[1727530343774,0.37588,2659.7,2659.6,1.18289]
[1727530344487,0.37588,2659.7,2659.6,0.807]
[1727530344678,0.76858,2659.8,2659.6,1.1829]
[1727530344877,0.3927,2659.8,2659.6,1.1829]
[1727530345084,0.76858,2659.8,2659.6,1.1829]
[1727530345483,1.35,2659.7,2659.3,0.37593]
[1727530345683,0.37592,2659.5,2659.3,1.58943]
[1727530346089,0.37592,2659.5,2659.3,0.78244]
[1727530346483,0.37592,2659.5,2659.3,0.4065]
[1727530346785,0.37592,2659.5,2659.3,0.78243]
[1727530347379,3.5837,2659.6,2659.3,0.4065]
[1727530347579,0.3759,2659.6,2659.4,0.37592]
[1727530347786,0.3759,2659.6,2659.5,0.37591]
[1727530347988,0.3759,2659.6,2659.5,1.35]
[1727530348184,0.3759,2659.6,2659.5,1.72591]
[1727530348381,6.62589,2659.7,2659.5,1.72591]
[1727530348681,0.3759,2659.6,2659.5,1.35]
[1727530350691,3.6005,2659.8,2659.5,1.35]
[1727530350888,3.97638,2659.8,2659.6,0.37589]
[1727530351085,3.6005,2659.8,2659.7,0.37588]
[1727530351292,7.00405,2660.0,2659.8,0.37587]
[1727530351498,6.61785,2660.0,2659.9,0.4068]
[1727530352584,3.2078,2660.1,2660.0,0.37584]
[1727530352793,3.58363,2660.1,2660.0,0.37584]
[1727530353192,3.58363,2660.1,2659.9,2.13264]
[1727530353390,0.37584,2660.0,2659.9,2.13264]
[1727530353594,0.37584,2660.0,2659.9,2.93964]
[1727530353892,0.37584,2660.0,2659.9,4.973]
[1727530354086,2.66545,2660.0,2659.9,0.4068]
[1727530354290,2.53344,2660.0,2659.9,0.4068]
[1727530354496,0.77504,2660.0,2659.9,0.4068]
[1727530363194,3.58363,2660.1,2659.9,1.7568]
[1727530363497,3.2078,2660.1,2659.9,1.7568]
[1727530363897,3.2078,2660.1,2660.0,0.78544]
[1727530364099,3.58363,2660.1,2660.0,0.4096]
[1727530364994,3.58363,2660.1,2659.9,0.78265]
[1727530365195,0.37584,2660.0,2659.9,0.4068]
[1727530366189,3.58364,2660.1,2659.9,0.78265]
[1727530368798,3.58364,2660.1,2660.0,0.37584]
[1727530368998,3.2078,2660.1,2660.0,0.37584]
[1727530369496,0.7819,2660.3,2660.2,0.37581]
[1727530369693,7.01679,2660.4,2660.2,0.37581]
[1727530370091,7.01679,2660.4,2660.1,0.37582]
[1727530370092,0.3758,2660.3,2660.1,0.37582]
[1727530370292,0.37581,2660.2,2660.1,0.37582]
[1727530374193,0.37581,2660.3,2660.1,0.37582]
[1727530376099,3.2078,2660.2,2659.8,2.33536276]
[1727530376431,0.37584,2660.1,2659.9,1.18185]
[1727530376708,0.37584,2660.0,2659.8,0.37586]
[1727530377006,0.3934,2660.1,2659.8,0.806]
[1727530377007,0.77646,2659.9,2659.8,0.806]
[1727530377197,0.77646,2659.9,2659.7,0.37587]
[1727530377408,0.77646,2659.9,2659.7,1.18187]
[1727530377409,0.4093,2659.8,2659.7,1.18187]
[1727530377702,0.78518,2659.8,2659.6,1.56909]
[1727530378501,0.78518,2659.8,2659.6,2.55445276]
[1727530380409,0.4093,2659.8,2659.7,0.37588]
[1727530381008,0.78518,2659.8,2659.6,1.18189]
[1727530381305,0.78518,2659.8,2659.5,0.3759]
[1727530381498,0.78518,2659.8,2659.6,0.3759]
[1727530381703,0.3759,2659.6,2659.5,0.98536276]
[1727530382016,0.37595,2659.3,2659.1,0.98536276]
[1727530382307,0.37595,2659.3,2659.2,0.806]
[1727530382502,3.58375,2659.3,2659.2,0.806]
[1727530383008,3.2078,2659.3,2658.9,2.33536276]
[1727530383206,3.58378,2659.0,2658.8,0.98536276]
[1727530383701,3.97328,2659.0,2658.8,0.98536276]
[1727530384004,3.97329,2659.0,2658.7,1.79136276]
[1727530384214,3.97329,2659.0,2658.7,1.18202]
[1727530384410,3.5973,2659.0,2658.7,1.18202]
[1727530384611,3.97329,2659.0,2658.7,1.18202]
[1727530384806,3.97329,2659.0,2658.7,0.37602]
[1727530385703,3.5973,2659.0,2658.8,0.376]
[1727530386106,3.97329,2659.0,2658.7,0.75082]
[1727530386313,3.5973,2659.0,2658.7,0.75082]
[1727530386515,3.97328,2659.0,2658.7,0.75082]
[1727530386905,3.5973,2659.0,2658.7,0.75082]
[1727530387214,3.5973,2659.0,2658.8,0.37601]
[1727530388704,3.5973,2659.0,2658.7,0.75082]
[1727530388911,3.5973,2659.0,2658.7,0.3748]
[1727530389106,3.5973,2659.0,2658.8,0.37601]
[1727530390416,3.97328,2659.0,2658.7,0.75082]
[1727530390616,3.5973,2659.0,2658.8,0.37601]
[1727530390916,3.97328,2659.0,2658.7,0.75082]
[1727530391910,3.5973,2659.0,2658.7,0.3748]
[1727530392208,3.2078,2659.0,2658.9,0.376]
[1727530392505,3.2078,2659.0,2658.8,0.376]
[1727530394119,3.2078,2659.0,2658.7,0.7727]
[1727530394313,3.2078,2659.0,2658.9,0.376]
[1727530394820,3.2078,2659.0,2658.9,4.1368]
[1727530395810,3.5837,2659.6,2659.3,0.37594]
[1727530396011,3.5837,2659.6,2658.9,9.7608]
[1727530396012,3.2078,2659.6,2659.4,0.3818]
[1727530396308,3.2078,2659.6,2659.4,0.75772]
[1727530396507,3.2078,2659.6,2659.4,0.3818]
[1727530396508,3.5837,2659.6,2659.4,0.3818]
[1727530397310,3.5837,2659.6,2659.4,0.75772]
[1727530398305,3.5837,2659.6,2659.4,0.3818]
[1727530398621,3.5837,2659.6,2659.4,0.75772]
[1727530399119,3.5837,2659.6,2659.4,0.3818]
[1727530400419,0.37591,2659.5,2659.4,0.3818]
[1727530400923,0.37591,2659.5,2659.3,0.37593]
[1727530402820,0.37591,2659.5,2659.2,1.57185]
[1727530403120,0.37591,2659.5,2659.3,0.37594]
[1727530403516,3.58371,2659.6,2659.3,0.37594]
[1727530406518,0.37591,2659.5,2659.3,0.37594]
[1727530406727,0.37591,2659.5,2659.2,1.57185]
[1727530411121,0.37592,2659.5,2659.2,1.57185]
[1727530411321,0.37591,2659.5,2659.2,1.57185]
[1727530411523,0.37593,2659.4,2659.2,1.57185]
[1727530412123,0.37594,2659.3,2659.2,0.3899]
[1727530413526,0.37593,2659.4,2659.2,0.76585]
[1727530414231,0.37593,2659.4,2659.2,0.3899]
[1727530414734,3.58373,2659.4,2659.2,0.3899]
[1727530416024,3.58373,2659.4,2659.2,0.76585]
[1727530416724,3.58373,2659.4,2659.2,0.3899]
[1727530417035,3.58373,2659.4,2658.8,0.376]
[1727530417036,6.242,2659.2,2658.8,0.376]
[1727530417332,1.35,2659.0,2658.8,0.376]
[1727530418228,1.35,2659.0,2658.7,0.3968]
[1727530418229,0.376,2658.9,2658.7,0.3968]
[1727530418528,0.4064,2658.9,2658.7,0.77282]
[1727530419231,0.3964,2658.8,2658.7,0.77282]
[1727530419625,0.3964,2658.8,2658.7,0.3968]
[1727530419826,0.3964,2658.8,2658.7,0.77282]
[1727530420530,0.4064,2658.9,2658.7,0.77282]
[1727530420733,0.7824,2658.9,2658.7,0.77282]
[1727530421735,0.7824,2658.9,2658.7,0.3968]
[1727530422443,0.7824,2658.9,2658.7,0.77282]
[1727530424037,6.242,2658.8,2658.7,0.77282]
[1727530426034,6.618,2658.9,2658.7,0.77282]
[1727530426432,0.37601,2658.8,2658.7,0.77282]
[1727530426931,0.37601,2658.8,2658.7,0.3968]
[1727530428441,0.37601,2658.8,2658.7,0.77282]
[1727530429744,0.37601,2658.8,2658.7,0.3968]
[1727530431049,0.37601,2658.8,2658.7,0.77282]
[1727530432639,0.37601,2658.8,2658.7,0.3968]
[1727530432846,1.72601,2658.8,2658.7,0.3968]
[1727530433844,7.96801,2658.8,2658.7,0.3968]
[1727530434944,7.96801,2658.8,2658.7,0.77282]
[1727530435946,0.94007,2658.7,2658.4,1.75196276]
[1727530436150,0.37605,2658.5,2658.3,1.36144276]
[1727530436343,2.1461,2658.6,2658.3,0.37608]
[1727530436344,1.35,2658.4,2658.3,0.37608]
[1727530436846,0.37608,2658.3,2658.2,1.58359]
[1727530437145,1.72608,2658.4,2658.2,1.58359]
[1727530437457,1.72608,2658.4,2658.2,0.77759]
[1727530437649,0.37608,2658.3,2658.2,0.77759]
[1727530437848,1.72608,2658.4,2658.2,0.77759]
[1727530438440,0.37608,2658.3,2658.2,0.4015]
[1727530438753,1.72608,2658.3,2658.2,0.4015]
[1727530438943,2.09908,2658.3,2658.2,0.4015]
[1727530439348,0.37611,2658.1,2658.0,3.2078]
[1727530439543,1.35,2658.1,2657.9,0.37614]
[1727530439738,1.72611,2658.1,2657.9,0.4061]
[1727530439954,2.11511,2658.1,2657.9,0.4061]
[1727530440155,1.739,2658.1,2657.9,0.78224]
[1727530440450,1.739,2658.1,2658.0,0.37612]
[1727530440451,0.389,2658.1,2658.0,0.37612]
[1727530441948,3.2078,2658.2,2658.1,0.37611]
[1727530442342,2.2485086,2658.5,2658.2,0.37609]
[1727530442545,2.2485086,2658.5,2658.3,1.2007]
[1727530442754,0.7742,2658.5,2658.3,1.2007]
[1727530443156,0.37607,2658.4,2658.3,1.2007]
[1727530443742,1.15026,2658.5,2658.3,1.2007]
[1727530443952,6.242,2658.4,2658.3,1.2007]
[1727530444355,3.2078,2658.6,2658.3,2.5507]
[1727530444356,3.58384,2658.6,2658.3,2.5507]
[1727530444656,9.82584,2658.6,2658.3,2.5507]
[1727530444856,0.37605,2658.5,2658.3,2.92678]
[1727530445252,9.82585,2658.6,2658.3,2.5507]
[1727530445449,9.82585,2658.6,2658.3,2.92677]
[1727530445650,9.82585,2658.6,2658.3,1.57677]
[1727530445953,0.37606,2658.5,2658.3,1.57677]
[1727530446148,9.82585,2658.6,2658.3,1.57677]
[1727530446451,0.37605,2658.5,2658.3,1.57677]
[1727530448251,9.82584,2658.6,2658.4,0.37606]
[1727530448855,9.4498,2658.6,2658.5,0.37605]
[1727530449458,0.37602,2658.8,2658.5,1.35]
[1727530449960,0.37602,2658.8,2658.6,0.37604]